bitfinex-derivatives/quotes_ETHF0:USTF0_20240922
["timestamp","ask_amount","ask_price","bid_price","bid_amount"]
[1727042478311,0.39253,2547.2,2546.6,0.3926]
[1727042478507,0.39263,2546.5,2546.2,3.2078]
[1727042478706,3.2078,2546.6,2546.2,3.2078]
[1727042478910,0.39266,2546.3,2546.2,3.2078]
[1727042479314,3.2078,2546.6,2545.9,3.2078]
[1727042479518,4.45,2546.9,2545.9,3.2078]
[1727042479519,4.45,2546.9,2546.3,0.39265]
[1727042479710,3.2078,2546.7,2545.9,3.2078]
[1727042479908,3.2078,2546.7,2546.0,0.39271]
[1727042479909,0.39263,2546.6,2546.0,0.39271]
[1727042480112,0.39263,2546.6,2545.9,3.2078]
[1727042480113,0.39263,2546.6,2545.9,3.60052]
[1727042480312,3.2078,2546.7,2545.9,3.2078]
[1727042480911,4.45,2546.9,2546.0,0.3927]
[1727042481320,4.45,2546.9,2545.9,3.60052]
[1727042481518,0.3926,2546.8,2546.2,3.2078]
[1727042481721,0.39261,2546.7,2546.2,3.2078]
[1727042481923,0.39261,2546.7,2546.0,0.39271]
[1727042482220,7.6578,2546.9,2545.9,3.2078]
[1727042482422,0.39255,2547.1,2546.4,0.39264]
[1727042482618,0.39255,2547.1,2546.5,3.2078]
[1727042482814,3.2078,2547.2,2546.5,3.2078]
[1727042483018,3.6443,2548.3,2547.1,3.2078]
[1727042483321,8.44,2549.0,2546.6,3.9264]
[1727042483322,3.2078,2548.9,2547.7,3.2078]
[1727042483515,3.2078,2548.9,2548.3,3.2078]
[1727042483918,0.39228,2548.8,2548.3,3.2078]
[1727042484319,3.2078,2548.9,2548.3,3.2078]
[1727042484521,0.39236,2548.3,2547.6,3.2078]
[1727042484715,3.2078,2548.6,2547.6,3.2078]
[1727042484916,0.39243,2547.9,2547.3,3.2078]
[1727042485117,0.39242,2547.9,2547.3,3.2078]
[1727042485428,0.39242,2547.9,2547.3,3.6003]
[1727042485633,0.39243,2547.8,2547.3,3.2078]
[1727042485930,0.39243,2547.8,2546.7,1.3052]
[1727042485931,0.39249,2547.4,2546.9,3.2078]
[1727042486126,3.2078,2547.8,2546.9,3.2078]
[1727042486325,2.97,2547.5,2546.9,3.2078]
[1727042486639,0.3925,2547.4,2546.9,3.2078]
[1727042486933,2.97,2547.5,2546.9,3.2078]
[1727042487120,0.39249,2547.4,2546.9,3.2078]
[1727042487317,3.36249,2547.5,2546.9,3.60037]
[1727042487526,2.97,2547.5,2547.0,0.39255]
[1727042487829,2.97,2547.5,2546.9,3.2078]
[1727042488026,2.97,2547.5,2547.3,3.2078]
[1727042488226,2.97,2547.9,2547.3,3.2078]
[1727042488423,3.2078,2548.0,2547.1,3.2078]
[1727042488424,0.39244,2547.8,2547.1,3.2078]
[1727042488623,3.2078,2548.0,2547.1,3.60033]
[1727042488825,0.39244,2547.8,2547.1,3.60033]
[1727042489124,0.98107,2547.9,2547.1,3.2078]
[1727042489325,0.98107,2547.9,2546.8,3.2078]
[1727042489326,3.2078,2547.7,2546.8,3.2078]
[1727042489528,7.6578,2547.4,2546.1,3.2078]
[1727042489831,0.39267,2546.3,2546.1,3.2078]
[1727042490129,0.39268,2546.2,2545.8,3.60053]
[1727042490328,4.45,2546.4,2545.8,3.2078]
[1727042490525,4.45,2546.4,2545.8,3.60054]
[1727042490526,0.39266,2546.3,2545.8,3.60054]
[1727042490727,0.39265,2546.5,2546.0,0.39271]
[1727042491027,0.39263,2546.6,2546.2,0.39267]
[1727042491427,3.2078,2546.7,2545.8,3.2078]
[1727042491625,0.39272,2546.0,2545.8,3.2078]
[1727042491822,5.43163,2546.4,2545.8,3.2078]
[1727042492126,0.39272,2545.9,2545.8,3.2078]
[1727042492428,0.39272,2546.0,2545.8,3.2078]
[1727042492631,0.39272,2545.9,2545.8,3.2078]
[1727042493027,0.39276,2545.7,2545.5,3.2078]
[1727042493333,3.928,2545.9,2545.1,0.4248]
[1727042493334,3.928,2545.8,2545.1,0.39285]
[1727042493625,3.928,2545.8,2544.2,0.98247]
[1727042493626,3.2078,2545.4,2544.6,3.60072]
[1727042493830,5.43219,2545.0,2544.1,0.39299]
[1727042494019,3.2078,2544.8,2544.0,3.2078]
[1727042494215,3.2078,2544.8,2542.9,0.98294]
[1727042494216,0.39313,2543.3,2542.8,0.39319]
[1727042494429,3.2078,2542.9,2542.0,3.2078]
[1727042494626,3.2078,2542.9,2541.5,0.60449851]
[1727042494627,7.6578,2542.6,2542.3,3.2078]
[1727042494820,5.17102945,2543.2,2540.6,1.52062182]
[1727042494821,3.2078,2542.4,2541.1,3.2078]
[1727042495018,3.2078,2542.1,2541.7,3.2078]
[1727042495216,0.98282,2543.4,2541.6,3.2078]
[1727042495217,3.2078,2542.3,2541.6,3.2078]
[1727042495420,3.2078,2541.8,2540.9,3.2078]
[1727042495719,0.98282,2543.4,2540.9,3.2078]
[1727042495720,3.2078,2541.5,2540.9,3.2078]
[1727042495922,3.2078,2541.9,2540.9,9.2078]
[1727042496118,3.2078,2542.8,2542.5,3.2078]
[1727042496927,3.2078,2542.8,2541.6,3.2078]
[1727042496928,3.9328,2542.7,2541.6,3.2078]
[1727042497126,3.2078,2542.3,2542.1,3.2078]
[1727042498022,3.2078,2542.6,2542.2,3.2078]
[1727042498240,3.2078,2543.7,2543.2,3.2078]
[1727042498428,0.4239,2543.9,2541.8,8.446]
[1727042498429,3.2078,2543.6,2543.3,3.2078]
[1727042498727,3.2078,2543.6,2543.4,3.2078]
[1727042499318,9.60088,2543.6,2543.4,3.2078]
[1727042499519,9.60088,2543.6,2542.0,0.4544]
[1727042499520,7.6578,2544.0,2543.5,3.2078]
[1727042499718,7.6578,2544.0,2543.7,3.2078]
[1727042499923,3.2078,2544.4,2543.9,3.2078]
[1727042500126,3.2078,2544.4,2544.0,3.2078]
[1727042500317,3.2078,2544.4,2543.6,3.2078]
[1727042500318,0.39302,2544.0,2543.6,3.2078]
[1727042500522,3.2078,2543.7,2542.5,3.2078]
[1727042500723,3.2078,2542.8,2542.7,3.2078]
[1727042501133,3.2078,2542.9,2542.7,3.2078]
[1727042501327,0.39322,2542.7,2542.2,3.2078]
[1727042501530,3.2078,2542.9,2542.5,3.2078]
[1727042501932,3.2078,2542.6,2542.5,3.2078]
[1727042502343,3.2078,2542.6,2542.0,0.4544]
[1727042502532,0.3933,2542.2,2542.1,3.2078]
[1727042502728,3.2078,2542.3,2540.9,4.1314]
[1727042502932,5.43316,2542.5,2540.9,4.1314]
[1727042502933,3.2078,2541.5,2541.3,3.2078]
[1727042503437,0.39349,2541.0,2540.2,3.2078]
[1727042503631,3.2078,2540.9,2540.4,3.2078]
[1727042503826,7.6578,2540.9,2540.2,6.4156]
[1727042504026,3.2078,2540.6,2540.4,3.2078]
[1727042504227,3.2078,2540.6,2540.0,3.4078]
[1727042504537,3.2078,2540.3,2540.2,0.39361]
[1727042504832,3.2078,2540.9,2540.8,3.2078]
[1727042505129,3.2078,2541.8,2540.5,3.2078]
[1727042505336,0.983,2542.9,2540.5,3.2078]
[1727042505337,3.2078,2541.4,2541.1,3.2078]
[1727042505527,3.2078,2541.4,2541.0,3.2078]
[1727042505728,3.60128,2541.1,2540.7,3.2078]
[1727042505923,0.98325,2542.3,2540.0,0.59362]
[1727042505924,3.2078,2540.8,2540.0,0.2]
[1727042506125,3.2078,2540.6,2540.0,0.2]
[1727042506538,3.2078,2540.6,2540.5,2.26698]
[1727042506924,13.1438,2540.6,2540.0,0.2]
[1727042507233,13.1438,2540.6,2540.4,2.26698]
[1727042507234,3.2078,2540.6,2540.4,2.26698]
[1727042508029,3.2078,2540.6,2540.5,2.26698]
[1727042508335,0.4282,2541.9,2540.5,2.26698]
[1727042508336,4.45,2541.4,2540.5,2.26698]
[1727042508534,4.45,2541.4,2540.2,3.2078]
[1727042508535,3.2078,2541.5,2540.8,3.2078]
[1727042508840,1.4133,2543.2,2541.4,3.2078]
[1727042508841,0.94082,2542.2,2541.4,3.2078]
[1727042509034,0.94082,2542.2,2540.8,0.98376]
[1727042509035,0.94082,2542.2,2542.0,0.39332]
[1727042509236,0.94082,2542.2,2541.7,3.2078]
[1727042509937,0.94082,2542.2,2541.7,3.60117]
[1727042510237,0.94082,2542.2,2541.9,0.39334]
[1727042510433,0.94082,2542.2,2541.7,3.2078]
[1727042511036,3.2078,2542.6,2542.0,3.2078]
[1727042511246,3.2078,2542.6,2541.6,3.2078]
[1727042511736,3.2078,2542.9,2541.9,3.2078]
[1727042511935,3.2078,2543.5,2542.5,3.2078]
[1727042512237,4.45,2543.7,2542.5,3.2078]
[1727042512440,3.6009,2543.5,2542.5,3.60104]
[1727042512745,0.39311,2543.4,2542.5,3.60104]
[1727042512948,3.2078,2543.5,2542.6,0.39323]
[1727042513242,3.6009,2543.5,2542.5,3.60104]
[1727042513540,3.2078,2543.5,2542.5,3.2078]
[1727042513739,3.6009,2543.5,2542.6,0.39322]
[1727042514044,3.2078,2543.2,2542.5,3.2078]
[1727042514337,3.2078,2542.9,2542.5,3.2078]
[1727042514935,7.6578,2543.2,2542.5,0.39324]
[1727042515135,7.6578,2543.2,2542.1,3.2078]
[1727042515340,3.60091,2543.4,2542.4,3.2078]
[1727042515537,3.2078,2543.1,2542.4,3.2078]
[1727042515740,3.2078,2542.5,2541.2,3.2078]
[1727042515946,3.2078,2542.1,2541.5,0.3934]
[1727042516140,3.2078,2542.1,2541.2,3.2078]
[1727042516141,0.39333,2542.0,2541.2,3.2078]
[1727042516443,3.2078,2542.1,2541.6,0.39339]
[1727042516631,3.60111,2542.1,2541.4,0.39342]
[1727042516830,3.60111,2542.1,2540.2,0.4638]
[1727042516831,3.2078,2542.1,2541.6,3.2078]
[1727042517030,0.39327,2542.4,2541.3,3.2078]
[1727042517230,3.2078,2542.5,2541.9,0.39334]
[1727042517431,3.2078,2542.5,2541.7,0.39337]
[1727042517432,3.60105,2542.5,2541.7,0.39337]
[1727042517637,3.60105,2542.5,2541.8,0.39336]
[1727042518037,0.39327,2542.4,2541.7,0.39336]
[1727042518233,3.2078,2542.5,2541.4,3.2078]
[1727042518234,3.2078,2542.2,2541.4,3.2078]
[1727042518935,3.2078,2542.2,2541.7,0.39337]
[1727042519237,3.2078,2542.2,2541.4,3.2078]
[1727042519541,3.2078,2542.2,2541.5,3.2078]
[1727042519835,3.2078,2542.5,2541.5,3.2078]
[1727042520038,3.2078,2542.5,2541.8,3.2078]
[1727042520235,3.2078,2542.8,2542.0,3.2078]
[1727042520430,3.2078,2542.8,2542.7,0.39322]
[1727042520635,3.2078,2542.8,2542.3,3.2078]
[1727042520835,2.97,2543.1,2542.8,0.39319]
[1727042521029,6.5709,2543.5,2542.8,0.39319]
[1727042521234,3.2078,2543.2,2542.7,0.39321]
[1727042521531,2.97,2542.8,2541.8,3.2078]
[1727042521743,3.2078,2541.9,2541.0,0.39347]
[1727042521935,0.39345,2541.3,2540.7,3.2078]
[1727042522234,0.39345,2541.3,2540.4,3.2078]
[1727042522235,0.3935,2540.9,2540.4,3.2078]
[1727042522441,0.39356,2540.6,2539.9,0.83145]
[1727042522629,3.2078,2540.4,2539.5,0.4437]
[1727042522830,0.98369,2541.1,2539.5,0.4437]
[1727042522831,3.2078,2540.1,2539.8,0.39366]
[1727042523030,4.47,2540.6,2539.8,0.39366]
[1727042523031,3.2078,2540.4,2539.8,0.39366]
[1727042523230,3.2078,2540.4,2539.4,3.2078]
[1727042523456,3.60142,2540.1,2539.4,3.2078]
[1727042523742,9.2078,2540.1,2538.9,0.4378]
[1727042523944,4.47,2540.7,2539.0,3.2078]
[1727042524143,3.2078,2540.8,2539.7,3.2078]
[1727042524342,3.2078,2540.8,2538.9,0.4378]
[1727042524343,3.2078,2540.8,2540.7,0.39353]
[1727042524641,3.2078,2541.1,2540.7,3.936]
[1727042524831,3.2078,2541.1,2541.0,0.39348]
[1727042525033,3.2078,2541.9,2540.7,3.2078]
[1727042525244,7.6778,2541.2,2540.1,0.8907]
[1727042525543,7.6778,2541.2,2540.0,0.2]
[1727042525544,3.2078,2540.9,2540.0,0.2]
[1727042525934,3.2078,2541.3,2540.6,0.39354]
[1727042526139,3.2078,2541.6,2540.5,3.2078]
[1727042526338,3.2078,2541.6,2540.8,3.2078]
[1727042526544,3.2078,2541.6,2541.1,0.39346]
[1727042526742,3.2078,2541.6,2541.0,0.39348]
[1727042526944,7.6778,2541.6,2540.3,3.2078]
[1727042527141,0.4645,2542.2,2540.0,0.2]
[1727042527142,3.2078,2540.7,2540.0,0.2]
[1727042527439,0.39359,2540.3,2540.0,0.2]
[1727042527752,0.3936,2540.3,2540.0,0.2]
[1727042527936,3.2078,2540.1,2540.0,0.2]
[1727042528140,7.6778,2541.1,2540.0,3.4078]
[1727042528344,3.2078,2541.4,2540.2,3.2078]
[1727042528540,3.2078,2541.4,2540.5,3.2078]
[1727042528837,3.2078,2541.4,2540.8,3.2078]
[1727042529038,3.2078,2541.4,2540.1,0.9226]
[1727042529039,3.2078,2541.4,2540.5,3.2078]
[1727042529242,3.60127,2541.1,2540.5,3.2078]
[1727042529447,0.39349,2541.0,2540.5,3.2078]
[1727042529947,4.47,2540.6,2540.0,0.2]
[1727042530246,0.39362,2540.1,2540.0,0.2]
[1727042530439,3.2078,2540.3,2540.0,0.2]
[1727042530859,3.2078,2540.6,2540.0,3.4078]
[1727042531144,3.2078,2540.6,2540.0,0.2]
[1727042531340,0.39361,2540.2,2540.0,0.2]
[1727042531544,3.6014,2540.3,2540.0,0.2]
[1727042531740,0.39362,2540.1,2540.0,0.2]
[1727042531934,0.39361,2540.3,2539.6,3.60149]
[1727042532141,3.2078,2540.6,2539.4,3.2078]
[1727042532344,8.6104,2540.9,2539.7,3.2078]
[1727042532536,0.39349,2541.0,2540.4,3.2078]
[1727042532747,0.9834,2541.9,2540.7,3.60133]
[1727042532748,0.39339,2541.6,2540.7,3.60133]
[1727042532950,3.2078,2541.4,2540.5,3.2078]
[1727042533145,0.39347,2541.1,2540.5,3.2078]
[1727042533344,0.39347,2541.1,2540.2,0.3936]
[1727042533345,3.2078,2540.9,2540.2,3.2078]
[1727042533645,0.39354,2540.7,2540.2,3.2078]
[1727042533848,3.2078,2540.9,2540.2,3.2078]
[1727042534040,3.2078,2540.7,2539.8,3.2078]
[1727042534246,0.39354,2540.6,2539.8,3.2078]
[1727042534452,3.60134,2540.7,2539.9,3.2078]
[1727042534755,3.2078,2541.0,2539.8,3.60146]
[1727042534942,3.2078,2540.7,2539.9,0.39365]
[1727042535141,7.6778,2541.0,2539.7,3.2078]
[1727042535348,7.6778,2541.0,2540.3,3.2078]
[1727042535349,3.2078,2541.0,2540.3,3.2078]
[1727042535545,3.2078,2541.0,2540.0,3.2078]
[1727042535735,0.39352,2540.8,2540.0,3.2078]
[1727042535939,0.39353,2540.7,2540.0,3.2078]
[1727042536155,3.2078,2540.7,2539.2,0.4295]
[1727042536448,3.2078,2539.8,2539.2,3.2078]
[1727042536643,3.2078,2539.8,2538.8,3.2078]
[1727042536946,4.86357,2540.5,2539.3,3.2078]
[1727042537158,3.6466,2540.6,2539.7,3.2078]
[1727042537159,0.4388,2540.6,2539.7,3.2078]
[1727042537455,3.2078,2540.6,2539.4,3.2078]
[1727042537643,4.47,2541.0,2539.7,3.2078]
[1727042537644,0.98379,2540.8,2539.7,3.2078]
[1727042537847,0.39367,2539.8,2539.4,3.2078]
[1727042538048,0.39367,2539.8,2538.7,0.2]
[1727042538049,0.39366,2539.9,2539.1,3.2078]
[1727042538245,3.2078,2540.2,2539.1,3.60158]
[1727042538439,0.39369,2539.7,2539.4,3.2078]
[1727042538643,8.66171,2540.5,2539.1,3.2078]
[1727042538644,0.98399,2540.3,2539.1,3.2078]
[1727042538850,0.39364,2540.0,2539.2,0.39375]
[1727042539054,3.2078,2540.1,2539.1,3.2078]
[1727042539351,3.60145,2540.0,2539.2,0.39376]
[1727042539649,3.2078,2540.1,2539.1,3.2078]
[1727042539854,3.60143,2540.1,2539.3,0.39373]
[1727042540048,3.60143,2540.1,2538.7,0.2]
[1727042540049,3.2078,2540.4,2539.4,3.2078]
[1727042540252,4.47,2540.5,2539.7,3.2078]
[1727042540440,3.2078,2540.7,2540.0,3.2078]
[1727042540845,4.47,2541.0,2540.3,3.60138]
[1727042541057,4.47,2541.0,2540.4,0.39357]
[1727042541243,4.47,2541.0,2540.4,0.39356]
[1727042541444,3.2078,2540.9,2540.6,0.39354]
[1727042541659,4.47,2541.0,2540.1,3.2078]
[1727042541957,0.39354,2540.7,2540.1,3.2078]
[1727042542253,3.2078,2540.8,2540.1,3.2078]
[1727042542457,3.2078,2540.8,2539.0,1.3148]
[1727042542458,2.98,2540.3,2539.4,3.2078]
[1727042542662,6.1878,2540.3,2539.4,3.2078]
[1727042542858,6.1878,2540.3,2539.8,0.39366]
[1727042543057,2.98,2540.3,2539.8,3.2078]
[1727042543367,2.98,2540.3,2540.1,3.2078]
[1727042543747,2.98,2540.7,2540.1,3.2078]
[1727042543947,2.98,2540.7,2539.0,0.8862]
[1727042543948,2.98,2540.7,2540.4,3.2078]
[1727042544154,2.98,2540.7,2540.4,3.60137]
[1727042544461,2.98,2540.7,2540.6,0.39354]
[1727042544761,2.98,2540.7,2540.5,0.39356]
[1727042545052,3.2078,2541.0,2540.7,0.39352]
[1727042545248,3.2078,2541.0,2540.4,7.1438]
[1727042545249,3.2078,2541.0,2540.8,0.39351]
[1727042545453,3.936,2540.9,2540.4,3.2078]
[1727042545755,0.3936,2540.3,2540.1,3.2078]
[1727042545962,6.1878,2540.2,2539.1,3.2078]
[1727042546159,6.1878,2539.8,2539.1,3.2078]
[1727042546652,2.98,2540.1,2539.4,3.2078]
[1727042546853,0.39369,2539.7,2539.1,3.60156]
[1727042547042,0.39369,2539.7,2539.1,3.2078]
[1727042547247,0.39369,2539.7,2539.2,0.39376]
[1727042547447,2.98,2539.4,2539.1,3.2078]
[1727042547864,0.39376,2539.2,2539.1,3.2078]
[1727042548356,2.98,2539.7,2539.3,0.39375]
[1727042548551,3.2078,2539.9,2539.1,7.1462]
[1727042548552,2.98,2539.4,2539.1,3.2078]
[1727042548752,0.39378,2539.1,2538.7,0.2]
[1727042549154,2.98,2539.4,2538.7,0.2]
[1727042549363,0.39372,2539.5,2539.0,0.39378]
[1727042549658,0.39378,2539.1,2538.9,3.2078]
[1727042549851,2.98,2539.3,2538.9,3.2078]
[1727042550156,2.98,2539.7,2539.0,3.9384]
[1727042550461,2.98,2539.7,2538.7,0.2]
[1727042550462,3.2078,2539.2,2538.7,0.2]
[1727042550652,2.98,2539.3,2538.7,0.2]
[1727042550851,6.1878,2539.7,2538.8,3.9384]
[1727042551053,6.1878,2539.7,2538.9,3.2078]
[1727042551252,2.98,2539.7,2539.0,0.98449]
[1727042551548,0.39375,2539.3,2538.9,3.2078]
[1727042551751,2.98,2539.4,2539.0,0.39378]
[1727042551953,2.98,2539.4,2538.9,3.2078]
[1727042552461,6.1878,2539.0,2537.8,0.00418624]
[1727042552649,2.98,2537.9,2537.8,0.00418624]
[1727042552858,3.2078,2538.0,2537.8,0.00418624]
[1727042553156,2.98,2538.2,2537.9,3.94]
[1727042553349,3.2078,2538.1,2537.8,0.00418624]
[1727042553550,2.98,2537.9,2537.8,0.00418624]
[1727042553959,6.92,2537.9,2537.8,0.00418624]
[1727042554159,6.92,2537.9,2536.7,3.2078]
[1727042554160,3.9408,2537.8,2536.7,3.2078]
[1727042554350,3.9408,2537.8,2536.4,3.6639]
[1727042554351,2.98,2537.0,2536.4,3.6639]
[1727042554549,3.96476,2538.3,2536.4,3.60198]
[1727042554550,2.98,2536.7,2536.4,3.60198]
[1727042554757,6.1878,2537.1,2536.9,0.39412]
[1727042554955,6.1878,2537.1,2535.4,1.97176]
[1727042554956,2.98,2537.1,2537.0,0.3941]
[1727042555160,2.98,2537.8,2537.0,3.2078]
[1727042555368,2.98,2537.8,2537.3,3.2078]
[1727042555656,2.98,2537.8,2537.1,0.4456]
[1727042555958,2.98,2538.2,2537.6,0.394]
[1727042556156,2.98,2538.2,2537.1,3.6534]
[1727042556357,2.98,2538.2,2536.6,1.43938]
[1727042556358,6.1878,2537.8,2536.6,0.454]
[1727042556662,6.1878,2537.8,2537.1,3.2078]
[1727042556663,3.2078,2537.7,2537.1,3.2078]
[1727042556847,2.98,2537.8,2537.1,3.2078]
[1727042557254,2.98,2537.8,2537.4,0.39404]
[1727042557559,2.98,2537.8,2537.1,3.2078]
[1727042557749,2.98,2537.8,2536.8,3.2078]
[1727042557950,3.37398,2537.8,2536.8,3.2078]
[1727042558153,2.98,2537.8,2537.1,3.2078]
[1727042558354,2.98,2537.8,2537.7,0.39399]
[1727042558557,0.98439,2539.3,2537.7,0.39399]
[1727042558558,2.98,2538.9,2538.6,0.39385]
[1727042558755,2.98,2538.9,2537.2,13.63373101]
[1727042558756,6.1878,2538.9,2537.2,5.16495877]
[1727042558961,2.98,2538.0,2537.7,0.39399]
[1727042559155,6.1878,2538.0,2537.7,0.39399]
[1727042559351,6.1878,2538.0,2537.2,3.2078]
[1727042559352,2.98,2538.0,2537.2,3.2078]
[1727042559656,2.98,2537.6,2537.2,3.2078]
[1727042559857,2.98,2537.6,2537.5,0.39402]
[1727042560360,3.2078,2537.8,2537.7,0.39399]
[1727042560562,3.2078,2537.8,2537.7,4.33479]
[1727042560756,3.2078,2537.8,2537.7,10.33479]
[1727042561154,3.2078,2537.8,2537.7,0.39399]
[1727042561450,3.2078,2537.8,2536.7,0.4456]
[1727042561451,7.54259,2537.8,2536.9,3.2078]
[1727042561654,7.54259,2537.8,2537.4,0.39404]
[1727042561655,6.1878,2537.8,2537.4,0.39404]
[1727042561859,6.1878,2537.8,2537.7,0.39399]
[1727042562061,3.2078,2537.8,2537.7,0.39399]
[1727042562259,3.2078,2538.3,2537.7,13.1486]
[1727042562560,3.2078,2538.3,2537.9,0.39395]
[1727042562866,3.2078,2538.3,2537.7,3.2078]
[1727042563053,2.98,2538.6,2538.3,0.3939]
[1727042563463,2.98,2538.6,2537.7,3.6448]
[1727042563664,2.98,2538.2,2538.1,0.39393]
[1727042563851,2.98,2538.2,2538.1,4.33393]
[1727042564055,3.2078,2538.5,2538.2,0.39391]
[1727042564252,2.98,2538.6,2538.1,0.39393]
[1727042564451,3.2078,2538.5,2538.0,0.39394]
[1727042564869,3.2078,2538.5,2537.7,3.6448]
[1727042565259,2.98,2538.6,2538.0,3.2078]
[1727042565558,3.2078,2538.5,2538.3,0.39389]
[1727042565756,3.2078,2538.8,2538.5,0.39387]
[1727042565960,2.98,2539.0,2538.5,0.39386]
[1727042566164,2.98,2538.6,2538.2,3.60171]
[1727042566361,2.98,2538.6,2537.8,3.2078]
[1727042566560,2.98,2538.6,2538.2,0.39391]
[1727042566764,3.2078,2538.5,2537.8,3.2078]
[1727042567059,6.58165,2538.6,2537.8,3.2078]
[1727042567262,2.98,2538.6,2537.8,3.2078]
[1727042567568,2.98,2538.6,2538.3,0.3939]
[1727042567768,3.2078,2538.5,2538.3,0.3939]
[1727042568060,3.2078,2538.5,2537.8,3.2078]
[1727042568268,2.98,2538.6,2537.8,3.2078]
[1727042568458,3.2078,2538.5,2537.8,3.2078]
[1727042568663,0.3939,2538.4,2537.8,3.60177]
[1727042568867,2.98,2538.2,2537.8,3.2078]
[1727042569059,2.98,2538.2,2537.7,0.437]
[1727042569060,3.2078,2537.9,2537.1,3.2078]
[1727042569267,2.98,2537.3,2537.1,3.2078]
[1727042569964,0.4458,2538.2,2536.6,4.19321]
[1727042569965,2.98,2537.7,2536.6,4.19321]
[1727042570157,2.98,2537.3,2536.6,3.2078]
[1727042570361,0.4458,2538.2,2536.6,3.2078]
[1727042570362,2.98,2536.9,2536.6,3.2078]
[1727042570562,3.2078,2537.0,2536.8,0.39412]
[1727042570760,3.2078,2537.0,2536.6,3.2078]
[1727042570959,3.2078,2537.0,2536.3,3.2078]
[1727042570960,6.1878,2537.0,2536.3,3.2078]
[1727042571269,6.1878,2537.0,2536.6,0.39416]
[1727042571568,6.1878,2537.0,2536.0,3.2078]
[1727042571569,3.2078,2536.7,2536.0,3.2078]
[1727042571864,6.582,2536.4,2535.7,0.3943]
[1727042572177,3.37426,2536.0,2535.3,3.2078]
[1727042572464,2.98,2536.0,2535.3,3.2078]
[1727042572661,3.2078,2535.8,2535.3,3.2078]
[1727042572856,2.98,2536.0,2535.4,0.39435]
[1727042573064,2.98,2536.0,2535.3,3.60216]
[1727042573065,3.37426,2536.0,2535.3,3.60216]
[1727042573265,3.2078,2535.5,2535.1,0.8090723]
[1727042573469,0.39457,2534.0,2533.5,2.02749576]
[1727042573662,0.39457,2534.0,2532.8,3.54811759]
[1727042573663,7.155,2533.6,2532.3,3.2078]
[1727042573862,7.155,2533.6,2533.3,3.2078]
[1727042573863,2.98,2533.6,2533.3,3.2078]
[1727042574163,6.1878,2533.6,2532.6,11.46873413]
[1727042574360,3.2078,2533.0,2532.8,0.39475]
[1727042574555,3.2078,2533.0,2532.6,0.39478]
[1727042574754,3.2078,2533.0,2532.7,0.39476]
[1727042574952,3.2078,2533.5,2533.3,0.39467]
[1727042575165,3.2078,2533.8,2533.3,6.0]
[1727042575366,3.2078,2533.5,2532.6,3.2078]
[1727042575665,3.2078,2533.1,2532.3,0.4699]
[1727042575866,6.1878,2533.0,2532.3,0.4699]
[1727042576065,2.98,2533.0,2532.3,0.4699]
[1727042576269,3.2078,2533.3,2532.6,0.03668591]
[1727042576469,5.9291216,2536.1,2532.9,3.2078]
[1727042576470,3.2078,2533.6,2532.9,3.2078]
[1727042576673,3.2078,2533.3,2532.6,0.03668591]
[1727042577374,3.2078,2533.3,2532.9,0.03668591]
[1727042577375,6.1878,2533.3,2532.9,0.03668591]
[1727042577578,3.2078,2533.3,2532.9,0.03668591]
[1727042577774,6.1878,2533.3,2532.9,0.03668591]
[1727042578270,0.4422,2534.7,2532.3,0.4699]
[1727042578271,6.1878,2533.6,2533.1,0.03668591]
[1727042578476,6.1878,2533.6,2533.2,0.39468]
[1727042578668,3.2078,2533.3,2533.1,0.03668591]
[1727042578861,3.2078,2533.3,2533.2,4.34189]
[1727042579069,3.2078,2533.9,2533.1,6.0]
[1727042579273,6.1878,2534.8,2533.6,3.2078]
[1727042579472,6.1878,2534.8,2534.4,0.39451]
[1727042579669,3.2078,2534.5,2533.6,3.2078]
[1727042579874,2.98,2534.3,2534.2,0.39453]
[1727042580065,2.98,2534.3,2534.2,0.39454]
[1727042580266,2.98,2534.3,2534.2,0.05408294]
[1727042580671,3.9456,2534.3,2534.2,0.05408294]
[1727042580871,3.9456,2534.3,2532.8,3.6722]
[1727042580872,12.9256,2534.3,2533.3,0.39467]
[1727042581179,2.98,2534.8,2532.5,0.98698]
[1727042581180,3.2078,2533.5,2532.5,3.2078]
[1727042581470,3.2078,2533.5,2533.1,0.3947]
[1727042581776,6.1878,2533.2,2532.9,0.39474]
[1727042581971,6.1878,2533.2,2532.5,3.2078]
[1727042582171,6.1878,2533.2,2532.1,1.45344]
[1727042582471,2.98,2533.5,2532.8,3.2078]
[1727042582772,2.98,2533.5,2532.4,3.2078]
[1727042582975,2.98,2533.1,2532.3,0.4699]
[1727042583175,3.2078,2533.3,2532.4,3.2078]
[1727042583369,3.2078,2534.2,2532.9,3.2078]
[1727042583563,2.98,2535.0,2534.9,0.39443]
[1727042583768,2.98,2535.4,2535.0,0.39441]
[1727042584071,7.13130288,2535.1,2534.4,0.3945]
[1727042584273,3.2078,2534.5,2534.0,0.39455]
[1727042584486,2.98,2534.3,2534.1,0.39455]
[1727042584779,3.2078,2534.5,2534.4,0.39451]
[1727042585174,3.2078,2534.5,2534.4,10.34011]